Cogmind - Beta 11 @@@ ROGUE MODE // 2022.03.24 @ 07:25:12 Player: Owlsley Result: Destroyed by S-43 Plague with Heavy Machine Gun Performance ------------- Evolutions (9) 4500 Regions Visited (15) 3000 Robots Destroyed (189) 945 Value Destroyed (9058) 9058 Prototype IDs (18) 360 Alien Tech Used (5) 1000 Bonus (5850) 5850 TOTAL SCORE: 24713 Bonus ------- High Alert Combat Kills 286 Follower Combat Kills 64 Entered DSFs 500 Used Core Reset Matrix 3000 Met Sigix 2000 Cogmind --------- Core Integrity 0/1600 Matter 160/300 Energy 99/100 System Corruption 4% Temperature Cool (0) Movement Core (50) Location -1/Access Parts ------- > --- POWER (2) -------- (None) > --- PROPULSION (8) --- Improved Heavy Treads > --- UTILITY (12) ----- Experimental Optical Array Advanced Target Analyzer Core Analyzer > --- WEAPON (3) ------- (None) > --- INVENTORY (5) ---- Enhanced Nova Cannon Sigix Containment Pod Peak State ------------ > --- POWER ------------ Heavy Antimatter Reactor > --- PROPULSION ------- Armored Medium Treads Armored Medium Treads Advanced Heavy Treads Improved Heavy Siege Treads > --- UTILITY ---------- Advanced Coolant Injector High-capacity Storage Unit Advanced Visual Processing Unit Improved Targeting Computer Advanced Target Analyzer Core Analyzer Reflective Plating Phase Armor Phase Redirector Advanced Hacking Suite > --- WEAPON ----------- Precision Phase Gun Heavy Dispersion Rifle Light Antimatter Cannon > --- INVENTORY -------- Micro Antimatter Reactor Micro Antimatter Reactor Matter Drive Armored Medium Treads Matter Compressor Improved Kinecellerator Advanced Weapon Cycler Improved Core Shielding Improved Hardlight Generator Improved Force Field Gamma Rifle Plasma Rifle Compact HERF Cannon Compact HERF Cannon Compact HERF Cannon Light Antimatter Cannon Light Antimatter Cannon Sigix Broadsword [Rating: 169] Favorites ----------- Power Antimatter Reactor Engine Improved Ion Engine Power Core Light Nuclear Core Reactor Antimatter Reactor Propulsion Light Treads Treads Light Treads Leg Myomer Leg Wheel Centrium Wheel Hover Unit Improved Antigrav System Flight Unit Impulse Thruster Array Utility Core Analyzer Device Improved Coolant Injector Storage High-capacity Storage Unit Processor Core Analyzer Hackware Hacking Suite Protection Layered Light Armor Plating Artifact Phase Armor Weapon KE Penetrator Energy Gun Wave Gun Energy Cannon Compact HERF Cannon Ballistic Gun KE Penetrator Ballistic Cannon Light Antimatter Cannon Launcher Mini Grenade Launcher Impact Weapon Flail Slashing Weapon Sigix Broadsword Build | -11 -10 -10 -9 -8 -7 -6 -6 -5 -4 -4 -4 -3 -3 -2 -1 ------- Run | Scr Mat Min Mat Mat Fac Fac DSF Fac Fac Was Fac Res Qua Res Acc Slots Evolved 18 | . . . 2 2 2 2 . 2 2 . . 2 . 2 2 Power 1 | . . . . . . . . . . . . . . 1 . Propulsion 6 | . . . . 1 . . . . 1 . . 2 . 1 1 Utility 10 | . . . 2 1 2 2 . 1 1 . . . . . 1 Weapon 1 | . . . . . . . . 1 . . . . . . . Parts Attached 287 | 2 13 5 26 32 24 . 20 28 7 5 23 43 38 14 7 Power 26 | . 1 1 2 2 3 . 2 2 . . 3 2 1 3 4 Engine 7 | . . 1 2 . 1 . 2 . . . . . . . 1 Core 8 | . 1 . . 2 2 . . 2 . . 1 . . . . Reactor 11 | . . . . . . . . . . . 2 2 1 3 3 Propulsion 62 | 2 . 2 5 8 4 . 5 5 3 3 7 7 8 2 1 Treads 47 | 2 . 2 2 8 4 . 5 5 3 3 1 7 4 . 1 Leg 1 | . . . . . . . . . . . . . 1 . . Wheel 6 | . . . . . . . . . . . 6 . . . . Hover 5 | . . . 3 . . . . . . . . . 2 . . Flight 3 | . . . . . . . . . . . . . 1 2 . Utility 78 | . 3 . 7 6 9 . 5 9 2 . 4 12 11 8 2 Device 31 | . 1 . . . 4 . 3 5 1 . 1 5 5 5 1 Storage 4 | . 1 . 1 1 . . . . . . . . . 1 . Processor 16 | . 1 . . 1 3 . 1 2 1 . 2 3 . 1 1 Hackware 3 | . . . 1 . 1 . . . . . . 1 . . . Protection 22 | . . . 5 4 1 . 1 2 . . 1 3 4 1 . Artifact 2 | . . . . . . . . . . . . . 2 . . Weapon 121 | . 9 2 12 16 8 . 8 12 2 2 9 22 18 1 . Energy Gun 46 | . 6 1 8 7 . . 6 2 1 . 2 6 6 1 . Energy Cannon 17 | . . . . . 2 . 1 4 1 1 . 6 2 . . Ballistic Gun 49 | . 3 1 3 8 6 . . 6 . . 7 9 6 . . Ballistic Cannon 3 | . . . . . . . 1 . . . . . 2 . . Launcher 2 | . . . . 1 . . . . . 1 . . . . . Special Weapon . | . . . . . . . . . . . . . . . . Impact Weapon 3 | . . . 1 . . . . . . . . 1 1 . . Slashing Weapon 1 | . . . . . . . . . . . . . 1 . . Piercing Weapon . | . . . . . . . . . . . . . . . . Special Melee Weapon . | . . . . . . . . . . . . . . . . Unidentified Prototypes 13 | . . . 1 1 . . . 1 . . 1 1 7 . 1 Corrupted Parts 3 | . . . 1 . . . . 2 . . . . . . . System Corruption 6 | . . . 1 . . . . 5 . . . . . . . Parts Lost 89 | . . 7 4 2 10 . 9 7 . 7 2 10 14 1 16 Power 11 | . . 1 1 2 1 . 1 . . 1 . 2 . . 2 Propulsion 27 | . . 3 1 . 1 . 4 2 . 3 1 1 7 . 4 Utility 35 | . . 1 . . 6 . 3 4 . 2 . 4 5 1 9 Weapon 16 | . . 2 2 . 2 . 1 1 . 1 1 3 2 . 1 Highest Loss Streak 14 | . . 7 3 1 7 . 4 4 . 5 1 3 7 1 14 To Critical Strikes 4 | . . . . . 1 . . . . 2 . 1 . . . Average Slot Usage (%) 90 | . 99 73 87 99 96 86 89 98 99 73 87 86 83 69 62 Engine 2 | . 5 11 9 2 . . 5 1 . . . . . 5 2 Core 3 | . 8 . . 6 7 6 . 3 5 1 3 . . . . Reactor 1 | . . . . . . . . . . . 1 4 3 1 3 Treads 17 | . 28 18 19 26 23 20 19 17 20 13 6 14 14 . . Device 9 | . 2 . . . 11 13 18 22 20 11 13 10 7 8 7 Storage 6 | . 14 14 11 9 7 6 6 5 5 5 5 4 3 1 3 Processor 16 | . 10 2 . 6 14 13 14 17 21 26 26 26 25 20 21 Hackware 4 | . . . . 9 6 6 6 5 5 5 5 4 4 4 1 Protection 7 | . . . 24 20 8 6 3 3 5 . 2 4 4 3 2 Energy Gun 5 | . 11 14 11 2 . . 7 6 2 . 2 3 5 7 8 Energy Cannon 1 | . . . . . . . 2 3 2 1 . 1 2 . . Ballistic Gun 9 | . 16 11 10 15 13 13 . 5 10 2 11 8 1 . . Naked Turns . | . . . . . . . . . . . . . . . . Heaviest Build 137 | 11 29 29 42 63 64 61 77 87 83 79 77 95 137 45 45 Greatest Support 220 | 40 40 40 43 63 70 70 82 90 100 100 75 220 220 45 45 Greatest Overweight (x) 10 | . . 1 1 1 1 . 1 1 1 . 6 2 1 . 10 Average Overweight (x) . | . . . . . . . . . . . 2 . . . . Largest Inventory Capacity 20 | 8 15 15 15 20 20 20 20 20 20 20 20 20 20 10 10 Average Capacity 18 | 8 14 15 15 19 20 20 20 20 20 20 20 20 19 6 9 Most Carried 20 | 6 15 15 15 20 20 19 20 20 20 20 20 20 20 10 10 Average Carried 17 | 6 13 12 14 19 18 19 19 19 19 17 18 19 19 5 8 Final Capacity 20 | 8 15 15 15 20 20 20 20 20 20 20 20 20 5 10 5 Final Carried 20 | 6 15 14 15 20 19 19 20 20 20 17 20 20 4 9 3 Class Distribution -------------------- 38% | Scavenger-Gunner 28% | Mutant 25% | Scavenger-Mutant 5% | Gunner Dominant Class ---------------- Mutant | -10/Materials Mutant | -10/Mines Mutant | -9/Materials Scavenger-Mutant | -8/Materials Scavenger-Mutant | -7/Factory Mutant | -6/Factory Mutant | -6/DSF Scavenger-Gunner | -5/Factory Scavenger-Gunner | -4/Factory Scavenger-Mutant | -4/Waste Scavenger-Gunner | -4/Factory Scavenger-Gunner | -3/Research Scavenger-Gunner | -3/Quarantine Scavenger-Mutant | -2/Research Scavenger-Gunner | -1/Access Resources | -11 -10 -10 -9 -8 -7 -6 -6 -5 -4 -4 -4 -3 -3 -2 -1 ----------- Run | Scr Mat Min Mat Mat Fac Fac DSF Fac Fac Was Fac Res Qua Res Acc Matter Collected 6818 | 200 546 28 281 1049 534 . 466 656 153 335 387 1258 762 145 18 Remotely . | . . . . . . . . . . . . . . . . Salvage Created 10897 | . 724 5 852 1904 390 . 755 1119 148 1631 368 2140 861 . . Parts 481 | . 45 . 36 113 23 . 28 44 8 5 19 114 46 . . Haulers Intercepted 8 | . 2 . 1 3 . . . 1 . . . . 1 . . Recyclers Shooed 4 | . 1 . 3 . . . . . . . . . . . . Parts Field Recycled . | . . . . . . . . . . . . . . . . Retrieved Matter . | . . . . . . . . . . . . . . . . Parts Self-Destructed . | . . . . . . . . . . . . . . . . Prevented . | . . . . . . . . . . . . . . . . Kills | -11 -10 -10 -9 -8 -7 -6 -6 -5 -4 -4 -4 -3 -3 -2 -1 ------- Run | Scr Mat Min Mat Mat Fac Fac DSF Fac Fac Was Fac Res Qua Res Acc Combat Hostiles Destroyed 163 | . 12 4 13 38 10 . 11 19 2 6 7 29 12 . . Melee 1 | . . . 1 . . . . . . . . . . . . Guns 145 | . 12 4 12 38 10 . 5 17 2 1 7 27 10 . . Cannons 9 | . . . . . . . 5 1 . . . 1 2 . . AOE 6 | . . . . . . . . . . 5 . 1 . . . Classes Destroyed 18 | . 4 1 2 4 1 . 3 1 . 1 . . 1 . . Worker 4 | . . . . 3 . . . 1 . . . . . . . Builder 6 | . . . . 2 . . . 1 . . 2 . 1 . . Hauler 8 | . 2 . 1 3 . . . 1 . . . . 1 . . Recycler 4 | . 1 . 3 . . . . . . . . . . . . Operator 4 | . 2 . . 1 . . . . . . . . 1 . . Watcher 3 | . . . . . 2 . . . 1 . . . . . . Swarmer 15 | . . . . 4 5 . . 5 . . 1 . . . . Grunt 61 | . 12 . 7 21 1 . 5 3 . . . 12 . . . Brawler 7 | . . . 1 1 2 . 1 1 . . . 1 . . . Duelist 1 | . . . . . . . . 1 . . . . . . . Researcher 1 | . . . . . . . . . . . . . 1 . . Sentry 21 | . . . 5 9 2 . . 2 . . . 3 . . . Specialist 3 | . . . . . . . 3 . . . . . . . . Hunter 11 | . . . . 3 . . . 2 . . . 4 2 . . Programmer 31 | . . . . . . . 1 5 2 . 6 9 8 . . Heavy 1 | . . . . . . . 1 . . . . . . . . Compactor 6 | . . . . . . . . . . 6 . . . . . Lightning 2 | . . . . . . . . . . . . . 2 . . Assembled 4 | . . 4 . . . . . . . . . . . . . Best Kill Streak 5 | . 5 4 4 5 3 . 3 3 1 2 3 5 3 . . Combat Bots Only 5 | . 4 4 3 5 3 . 3 3 1 2 3 5 3 . . Max Kills in Single Turn 2 | . 2 2 1 1 2 . 1 2 1 1 2 2 1 . . Gunslinging 1 | . . 1 . . . . . . . . . 1 . . . Exploded 1 | . . . . . . . . . . 1 . 1 . . . Melee 1 | . . . 1 . . . . . . . . . . . . Uniques/NPCs Destroyed . | . . . . . . . . . . . . . . . . Combat | -11 -10 -10 -9 -8 -7 -6 -6 -5 -4 -4 -4 -3 -3 -2 -1 -------- Run | Scr Mat Min Mat Mat Fac Fac DSF Fac Fac Was Fac Res Qua Res Acc Damage Taken 23020 | . 503 538 983 1931 1042 . 1674 2086 336 574 572 4266 4796 244 3475 Core 4300 | . 75 89 292 193 126 . 184 338 . 281 67 246 702 101 1606 Absorbed by Shields . | . . . . . . . . . . . . . . . . Redirected to Core 169 | . . . . . . . . . . . . . 169 . . Redirected to Shielding 306 | . . . 70 26 . . . . . . 57 50 . 33 70 Regen/Repaired (Parts) 193 | . . . . 116 77 . . . . . . . . . . Core Remaining (%) 64 | 100 . 34 27 64 82 . 78 66 . . 69 . 27 93 . Volleys Fired 584 | . 59 3 51 122 34 . 45 75 5 30 19 76 65 . . Largest 3 | . 2 2 2 2 2 . 2 3 3 3 3 3 3 . . Hottest 253 | . 70 85 130 100 53 . 170 237 149 163 129 244 253 . . Shots Fired 1300 | . 117 6 95 243 66 . 79 184 15 68 57 222 148 . . Gun 1144 | . 117 6 95 242 66 . 43 165 15 35 57 217 86 . . Cannon 137 | . . . . . . . 36 19 . 15 . 5 62 . . Launcher 19 | . . . . 1 . . . . . 18 . . . . . Special . | . . . . . . . . . . . . . . . . Kinetic 767 | . 82 3 30 202 66 . 17 81 10 29 41 144 62 . . Thermal 415 | . 28 3 61 15 . . 38 84 5 21 16 69 75 . . Explosive 19 | . . . . 1 . . . . . 18 . . . . . Electromagnetic 99 | . 7 . 4 25 . . 24 19 . . . 9 11 . . Robot Hit Streak 24 | . 13 14 20 12 8 . 12 13 10 17 12 24 15 . . Robot Miss Streak 7 | . 5 . 2 6 3 . 5 7 1 3 2 2 3 . . Penetration Max 1 | . . . . . . . . 1 . 1 1 1 1 . . Secondary Targets 18 | . . 2 2 2 1 . 1 . . . 2 8 . . . Max Gunslinging Chain 1 | . . 1 1 1 1 . 1 . . . 1 1 . . . Shots Hit Robots 898 | . 80 5 79 177 48 . 53 107 11 57 34 152 95 . . Core Hits 427 | . 35 4 26 98 33 . 28 48 6 20 15 76 38 . . Critical Kills 7 | . . . . . . . . . . . . 4 3 . . Critical Parts Destroyed 14 | . 1 . 2 1 1 . . 1 . 1 . 4 3 . . Critical Strikes 51 | . 3 . 4 1 2 . 4 8 . 1 2 14 12 . . Burn 23 | . 2 . 2 . . . 2 7 . . 2 4 4 . . Destroy 23 | . 1 . 1 1 2 . . 1 . 1 . 10 6 . . Blast 2 | . . . . . . . 1 . . . . . 1 . . Corrupt 2 | . . . . . . . 1 . . . . . 1 . . Smash 1 | . . . 1 . . . . . . . . . . . . Melee Attacks 10 | . . . 7 . . . . . . . . 2 1 . . Impact 10 | . . . 7 . . . . . . . . 2 1 . . Slashing . | . . . . . . . . . . . . . . . . Piercing . | . . . . . . . . . . . . . . . . Sneak Attacks . | . . . . . . . . . . . . . . . . Combat Hostiles . | . . . . . . . . . . . . . . . . Follow-up Attacks . | . . . . . . . . . . . . . . . . Damage Inflicted 22281 | . 990 64 1247 3158 958 . 1375 2562 319 3063 1047 4418 3075 . 5 Guns 17493 | . 986 64 1058 3158 958 . 669 2223 319 752 1047 4211 2048 . . Cannons 2608 | . . . . . . . 668 339 . 439 . 135 1027 . . Explosions 1982 | . . . . . . . 38 . . 1872 . 72 . . . Melee 189 | . . . 189 . . . . . . . . . . . . Ramming 9 | . 4 . . . . . . . . . . . . . 5 Kinetic 11140 | . 685 20 324 2691 958 . 337 1233 187 590 748 2456 911 . . Thermal 7520 | . 285 44 699 187 . . 663 990 132 601 299 1743 1877 . . Explosive 1872 | . . . . . . . . . . 1872 . . . . . Electromagnetic 1551 | . 16 . 35 280 . . 375 339 . . . 219 287 . . Impact 189 | . . . 189 . . . . . . . . . . . . Slashing . | . . . . . . . . . . . . . . . . Piercing . | . . . . . . . . . . . . . . . . Highest Corruption 44 | . . 4 1 . 22 . 2 18 2 30 36 14 44 1 4 Average Corruption 13 | . . 4 1 . 20 . 1 9 1 15 33 7 10 1 4 Corruption Purged 10 | . . . . . . . . . . . . 10 . . . Corruption Blocked . | . . . . . . . . . . . . . . . . Effects 229 | . . 1 . . 22 . 2 47 4 14 49 34 55 . 1 Message Errors 43 | . . 1 . . 3 . 1 7 . 6 11 4 10 . . Matter Fused 57 | . . . . . 9 . . 12 2 3 17 8 6 . . Heat Flow Errors 29 | . . . . . 1 . . 9 . . 6 2 11 . . Energy Discharges 34 | . . . . . 5 . . 4 1 1 7 7 9 . . Parts Rejected 4 | . . . . . . . . 3 . . . . 1 . . Data Loss (minor) 19 | . . . . . 1 . 1 4 . . 5 6 1 . 1 Data Loss (major) 7 | . . . . . . . . 2 . . 2 . 3 . . Misfires 7 | . . . . . . . . 3 . . . 3 1 . . Alerts 3 | . . . . . . . . . 1 1 . 1 . . . Misdirections 3 | . . . . . 1 . . . . . 1 . 1 . . Weapon Failures 23 | . . . . . 2 . . 3 . 3 . 3 12 . . Overload Shots . | . . . . . . . . . . . . . . . . Overflow Damage 123 | . . . 23 . . . . . . 45 . 6 49 . . Projectiles 55 | . . . . . . . . . . . . 6 49 . . Explosions 45 | . . . . . . . . . . 45 . . . . . Melee 23 | . . . 23 . . . . . . . . . . . . Knockbacks 24 | . . . 1 . . . 4 . . . . . 19 . . Impact 1 | . . . 1 . . . . . . . . . . . . Kinetic 19 | . . . . . . . 3 . . . . . 16 . . Secondary 4 | . . . . . . . 1 . . . . . 3 . . Self-Inflicted Damage 484 | . . . . . . . . 24 . 405 . 53 . . 2 Shots 12 | . . . . . . . . 1 . 10 . 1 . . . Rammed 2 | . 1 . . . . . . . . . . . . . 1 Targets Rammed 2 | . 1 . . . . . . . . . . . . . 1 Kicked . | . . . . . . . . . . . . . . . . Crushed . | . . . . . . . . . . . . . . . . Highest Temperature 346 | . 243 88 338 346 121 . 198 198 12 187 256 250 198 . . Average Temperature 84 | . 58 36 116 69 31 . 107 93 5 81 100 100 50 . . Received Heat Transfer 3402 | . 282 144 405 846 138 . 585 108 18 . . 559 245 27 45 Effects 5 | . . . 2 2 . . . . . . 1 . . . . Shutdowns 1 | . . . . 1 . . . . . . . . . . . Energy Bleed 1 | . . . . 1 . . . . . . . . . . . Interference 3 | . . . 2 . . . . . . . 1 . . . . Siege Activations . | . . . . . . . . . . . . . . . . Robots Corrupted 1 | . . . . . . . . . . . . . 1 . . Combat Hostiles . | . . . . . . . . . . . . . . . . Parts Fried 11 | . . . . 3 . . 4 2 . . . . 2 . . Impact Corruptions 1 | . . . 1 . . . . . . . . . . . . Robots Melted 3 | . . . . . . . 2 1 . . . . . . . Combat Hostiles 2 | . . . . . . . 1 1 . . . . . . . Parts Melted 28 | . 2 . 1 . . . 6 9 . . 3 5 2 . . Heat Transferred 13192 | . 962 111 1813 370 . . 1447 2679 148 666 518 2294 2184 . . Parts Sabotaged . | . . . . . . . . . . . . . . . . Parts Stolen . | . . . . . . . . . . . . . . . . Parts Stripped . | . . . . . . . . . . . . . . . . Power Chain Reactions 3 | . . . . . 1 . 1 . . . . 1 . . . Missiles Intercepted . | . . . . . . . . . . . . . . . . Alert | -11 -10 -10 -9 -8 -7 -6 -6 -5 -4 -4 -4 -3 -3 -2 -1 ------- Run | Scr Mat Min Mat Mat Fac Fac DSF Fac Fac Was Fac Res Qua Res Acc Peak Influence 815 | . 203 11 212 815 516 204 365 368 198 62 134 281 214 347 784 Initial 370 | . . 11 . 53 370 200 142 191 131 12 12 23 141 27 208 Average 174 | . 66 . 76 317 435 200 270 231 104 22 52 176 97 208 400 Maximum Alert Level 3 | . 1 . 1 3 2 1 1 1 . . . 1 1 1 3 Low Security (%) 63 | 100 86 100 99 26 . . 17 37 100 100 100 57 97 42 . Level 1 29 | . 13 . . 52 21 100 82 62 . . . 42 2 57 50 Level 2 6 | . . . . 12 78 . . . . . . . . . 43 Level 3 1 | . . . . 8 . . . . . . . . . . 6 Level 4 . | . . . . . . . . . . . . . . . . Level 5 . | . . . . . . . . . . . . . . . . High Security . | . . . . . . . . . . . . . . . . Max Security . | . . . . . . . . . . . . . . . . Sterilizations 1 | . . . . . . . 1 . . . . . . . . Squads Dispatched 41 | . 4 . . 11 3 . 2 2 1 . 3 7 5 1 2 Investigation 7 | . 3 . . 3 1 . . . . . . . . . . Extermination 13 | . . . . . . . . 2 1 . 2 3 3 1 1 Reinforcement 19 | . 1 . . 6 2 . 2 . . . 1 4 2 . 1 Assault 1 | . . . . 1 . . . . . . . . . . . Garrison 1 | . . . . 1 . . . . . . . . . . . Intercept . | . . . . . . . . . . . . . . . . Searches Triggered . | . . . . . . . . . . . . . . . . Construction Impeded 4 | . . . . 1 2 . . . . . . . 1 . . Haulers Reinforced 1 | . . . . . . . . . . . . . 1 . . Active Scanning Responses . | . . . . . . . . . . . . . . . . Cargo Convoy Interrupts . | . . . . . . . . . . . . . . . . Stealth | -11 -10 -10 -9 -8 -7 -6 -6 -5 -4 -4 -4 -3 -3 -2 -1 --------- Run | Scr Mat Min Mat Mat Fac Fac DSF Fac Fac Was Fac Res Qua Res Acc Distress Signals 11 | . . . . 4 1 . . 1 . . . 1 1 . 3 Communications Jammed 30 | . . . . . . . . 20 . . . 10 . . . Distress Signals 30 | . . . . . . . . 20 . . . 10 . . . Times Spotted 365 | . 28 24 17 68 14 . 15 25 4 6 10 41 29 16 68 Peak Tracking Total 22 | . 5 20 4 6 4 . 5 4 2 3 2 5 9 7 22 Tactical Retreats 33 | . . . 2 6 1 . 3 1 1 1 . 2 1 8 7 Traps | -11 -10 -10 -9 -8 -7 -6 -6 -5 -4 -4 -4 -3 -3 -2 -1 ------- Run | Scr Mat Min Mat Mat Fac Fac DSF Fac Fac Was Fac Res Qua Res Acc Traps Triggered 14 | . 2 . . 2 1 . . . 2 . 3 . 3 1 . Indirectly . | . . . . . . . . . . . . . . . . Trap Hack Attempts . | . . . . . . . . . . . . . . . . Triggered . | . . . . . . . . . . . . . . . . Disarmed . | . . . . . . . . . . . . . . . . Reprogrammed . | . . . . . . . . . . . . . . . . Reused . | . . . . . . . . . . . . . . . . Traps Extracted . | . . . . . . . . . . . . . . . . Installed . | . . . . . . . . . . . . . . . . Triggered 1 | . . . . . . . . . . . . . 1 . . Machines | -11 -10 -10 -9 -8 -7 -6 -6 -5 -4 -4 -4 -3 -3 -2 -1 ---------- Run | Scr Mat Min Mat Mat Fac Fac DSF Fac Fac Was Fac Res Qua Res Acc Machines Disabled 14 | . . . . 2 1 . . 5 1 . . 1 4 . . Max in Single Turn 2 | . . . . 1 1 . . 2 1 . . 1 1 . . Garrison Access 3 | . . . . 1 . . . 1 . . . 1 . . . Machines Sabotaged . | . . . . . . . . . . . . . . . . Garrisons Compromised . | . . . . . . . . . . . . . . . . Overloaded Fab Kills . | . . . . . . . . . . . . . . . . Hacking | -11 -10 -10 -9 -8 -7 -6 -6 -5 -4 -4 -4 -3 -3 -2 -1 --------- Run | Scr Mat Min Mat Mat Fac Fac DSF Fac Fac Was Fac Res Qua Res Acc Machines Accessed 42 | . 8 . 6 6 2 1 . 3 1 . 1 3 5 5 1 Terminals 26 | . 6 . 5 2 . 1 . 2 . . 1 2 3 3 1 Fabricators . | . . . . . . . . . . . . . . . . Repair Stations 4 | . . . . 1 1 . . . . . . . 1 1 . Recycling Units 5 | . 2 . . 1 1 . . . 1 . . . . . . Scanalyzers 2 | . . . 1 1 . . . . . . . . . . . Garrison Access 5 | . . . . 1 . . . 1 . . . 1 1 1 . Total Hacks 108 | . 21 . 29 17 8 1 . 4 1 . 4 7 7 8 1 Successful 54 | . 13 . 16 9 3 1 . 1 . . 3 3 3 2 . Failed 53 | . 7 . 13 8 5 . . 3 1 . 1 4 4 6 1 Catastrophic 6 | . 2 . 1 1 . . . 1 . . . . . 1 . Database Lockouts 1 | . 1 . . . . . . . . . . . . . . Manual 46 | . 9 . 16 7 3 . . 1 1 . 3 . 1 4 1 Terminals 69 | . 17 . 22 7 . 1 . 3 . . 4 5 4 5 1 Fabricators . | . . . . . . . . . . . . . . . . Repair Stations 8 | . . . . 3 3 . . . . . . . 1 1 . Recycling Units 14 | . 4 . . 4 5 . . . 1 . . . . . . Scanalyzers 9 | . . . 7 2 . . . . . . . . . . . Garrison Access 8 | . . . . 1 . . . 1 . . . 2 2 2 . Terminal Hacks 33 | . 11 . 9 4 . 1 . . . . 3 2 3 . . Record 3 | . 1 . 1 . . . . . . . . . 1 . . Robot Analysis 7 | . 5 . 2 . . . . . . . . . . . . Prototype ID Bank 4 | . 3 . 1 . . . . . . . . . . . . Open Door 1 | . . . . . . . . . . . . . 1 . . Open DSF 1 | . . . . . . 1 . . . . . . . . . Level Access Points 1 | . . . . . . . . . . . 1 . . . . Branch Access Points 3 | . . . 1 1 . . . . . . . 1 . . . Alert Level 1 | . . . . . . . . . . . 1 . . . . Unreport Threat 8 | . 2 . 3 1 . . . . . . . 1 1 . . Recall Reinforcements 1 | . . . . 1 . . . . . . . . . . . Zone Layout 3 | . . . 1 1 . . . . . . 1 . . . . Fabricator Hacks . | . . . . . . . . . . . . . . . . Repair Station Hacks 5 | . . . . 2 2 . . . . . . . . 1 . Scan Component 2 | . . . . 1 1 . . . . . . . . . . Repair 2 | . . . . 1 1 . . . . . . . . . . Refit 1 | . . . . . . . . . . . . . . 1 . Recycling Unit Hacks 1 | . . . . 1 . . . . . . . . . . . Retrieve Components 1 | . . . . 1 . . . . . . . . . . . Scanalyzer 6 | . . . 6 . . . . . . . . . . . . Insert Component 3 | . . . 3 . . . . . . . . . . . . Analyze 3 | . . . 3 . . . . . . . . . . . . Garrison Access Hacks 3 | . . . . 1 . . . 1 . . . 1 . . . Seal Access 3 | . . . . 1 . . . 1 . . . 1 . . . Unauthorized Hacks 6 | . 2 . 1 1 1 . . . . . . . . 1 . Terminals 2 | . . . 1 . . . . . . . . . . 1 . Botnet 2 | . . . 1 . . . . . . . . . . 1 . Fabricators . | . . . . . . . . . . . . . . . . Repair Stations . | . . . . . . . . . . . . . . . . Recycling Units 4 | . 2 . . 1 1 . . . . . . . . . . Mask 3 | . 1 . . 1 1 . . . . . . . . . . Tunnel 1 | . 1 . . . . . . . . . . . . . . Scanalyzers . | . . . . . . . . . . . . . . . . Garrison Access . | . . . . . . . . . . . . . . . . Data Cores Recovered 1 | . 1 . . . . . . . . . . . . . . Used 1 | . 1 . . . . . . . . . . . . . . Hacking Detections 36 | . 6 . 5 5 2 1 . 2 1 . 1 3 5 4 1 Full Trace Events 2 | . . . . 1 1 . . . . . . . . . . Feedback Events . | . . . . . . . . . . . . . . . . Feedback Blocked . | . . . . . . . . . . . . . . . . Robot Schematics Acquired 1 | . . . . . . . . . . . . . 1 . . Robots Built . | . . . . . . . . . . . . . . . . Authchips . | . . . . . . . . . . . . . . . . Time . | . . . . . . . . . . . . . . . . Total Robot Build Rating . | . . . . . . . . . . . . . . . . Part Schematics Acquired 5 | . . . 3 . . . . . . . . . 2 . . Parts Built . | . . . . . . . . . . . . . . . . Authchips . | . . . . . . . . . . . . . . . . Time . | . . . . . . . . . . . . . . . . Total Part Build Rating . | . . . . . . . . . . . . . . . . Parts Repaired 2 | . . . . 1 1 . . . . . . . . . . Time 51 | . . . . 32 19 . . . . . . . . . . Parts Recycled . | . . . . . . . . . . . . . . . . Recycled Matter . | . . . . . . . . . . . . . . . . Retrieved Matter . | . . . . . . . . . . . . . . . . Retrieved Components 10 | . . . . 10 . . . . . . . . . . . Parts Scanalyzed 3 | . . . 3 . . . . . . . . . . . . Part Schematics Acquired 3 | . . . 3 . . . . . . . . . . . . Parts Damaged . | . . . . . . . . . . . . . . . . Bothacking | -11 -10 -10 -9 -8 -7 -6 -6 -5 -4 -4 -4 -3 -3 -2 -1 ------------ Run | Scr Mat Min Mat Mat Fac Fac DSF Fac Fac Was Fac Res Qua Res Acc Used RIF Installer . | . . . . . . . . . . . . . . . . Robots Hacked . | . . . . . . . . . . . . . . . . Non-combat . | . . . . . . . . . . . . . . . . Combat . | . . . . . . . . . . . . . . . . Robot Hacks Applied . | . . . . . . . . . . . . . . . . Relay Couplers Released 4 | . . . . . . . . . . . . . 4 . . Programmers 4 | . . . . . . . . . . . . . 4 . . Fabnet Peak Effective % . | . . . . . . . . . . . . . . . . Robots Rewired . | . . . . . . . . . . . . . . . . Allies Hacked . | . . . . . . . . . . . . . . . . Hacks Repelled . | . . . . . . . . . . . . . . . . Allies | -11 -10 -10 -9 -8 -7 -6 -6 -5 -4 -4 -4 -3 -3 -2 -1 -------- Run | Scr Mat Min Mat Mat Fac Fac DSF Fac Fac Was Fac Res Qua Res Acc Total Allies 7 | . . . . . . . . . . . . . . . 7 Largest Group 7 | . . . . . . . . . . . . . . . 7 Highest-Rated Group 94 | . . . . . . . . . . . . . . . 94 Highest-Rated Ally 14 | . . . . . . . . . . . . . . . 14 Total Orders . | . . . . . . . . . . . . . . . . Ally Attacks 12 | . . . . . . . . . . . . . . . 12 Total Damage 265 | . . . . . . . . . . . . . . . 265 Kills 2 | . . . . . . . . . . . . . . . 2 Allies Corrupted . | . . . . . . . . . . . . . . . . Allies Melted . | . . . . . . . . . . . . . . . . Intel | -11 -10 -10 -9 -8 -7 -6 -6 -5 -4 -4 -4 -3 -3 -2 -1 ------- Run | Scr Mat Min Mat Mat Fac Fac DSF Fac Fac Was Fac Res Qua Res Acc Robot Analysis Total 7 | . 5 . 2 . . . . . . . . . . . . Derelict Logs Recovered . | . . . . . . . . . . . . . . . . Drone Launches . | . . . . . . . . . . . . . . . . Drone Recoveries . | . . . . . . . . . . . . . . . . Exploration | -11 -10 -10 -9 -8 -7 -6 -6 -5 -4 -4 -4 -3 -3 -2 -1 ------------- Run | Scr Mat Min Mat Mat Fac Fac DSF Fac Fac Was Fac Res Qua Res Acc Turns Passed 12504 | 3 1269 62 1179 1701 563 39 425 1636 562 322 913 1533 1683 363 251 Spaces Moved 6966 | 1 643 23 569 673 255 26 134 776 305 135 477 712 837 817 583 Core 101 | . . . . . . . . . . . . . 28 . 73 Treads 5046 | 1 643 23 545 673 255 26 134 776 305 135 126 619 785 . . Legs . | . . . . . . . . . . . . . . . . Wheels 444 | . . . . . . . . . . . 351 93 . . . Hover 24 | . . . 24 . . . . . . . . . . . . Flight 1351 | . . . . . . . . . . . . . 24 817 510 Fastest Speed 37 | 160 160 160 76 160 155 155 155 160 162 162 104 130 45 37 37 Average Speed 137 | 160 160 201 164 162 157 155 174 160 162 164 166 155 158 40 40 Slowest Speed 550 | 160 160 240 240 240 240 155 235 243 240 165 330 167 250 45 550 Overloaded Moves . | . . . . . . . . . . . . . . . . Propulsion Burnouts . | . . . . . . . . . . . . . . . . Robots Hopped 16 | . . . . . . . . . . . . . 2 2 12 Cave-ins Triggered . | . . . . . . . . . . . . . . . . Exploration Rate (%) 34 | 2 99 7 39 67 6 2 72 23 7 98 13 17 56 26 23 Regions Visited 15 Branch Regions 2 Pre-discovered Areas 1 | . 1 . . . . . . . . . . . . . . Known Exits Taken 4 | . . . . . . 1 . 1 . . 1 1 . . . Unknown Exits Taken 8 | 1 1 1 1 1 1 . . . . . . . 1 1 . Scrap Searched . | . . . . . . . . . . . . . . . . Spaces Dug 6 | . . . . . . . . . . . . 1 5 . . Terrain Destroyed 165 | . . . . 11 5 . 3 60 . 50 3 15 18 . . Melee 1 | . . . . . . . . . . . . 1 . . . Projectile 34 | . . . . . . . . 5 . 3 3 5 18 . . AOE 126 | . . . . 11 5 . 3 54 . 47 . 6 . . . Terrain Rammed . | . . . . . . . . . . . . . . . . Walls Destroyed . | . . . . . . . . . . . . . . . . Machines Disabled . | . . . . . . . . . . . . . . . . Actions | -11 -10 -10 -9 -8 -7 -6 -6 -5 -4 -4 -4 -3 -3 -2 -1 --------- Run | Scr Mat Min Mat Mat Fac Fac DSF Fac Fac Was Fac Res Qua Res Acc Total 8757 | 2 771 34 706 1041 347 25 248 1019 361 176 560 969 1065 845 588 Wait 548 | . 23 . 27 162 15 . 15 119 35 6 4 79 63 . . Move 6921 | . 642 22 568 672 254 25 133 775 305 134 476 711 832 812 560 Hop 15 | . . . . . . . . . . . . . 2 2 11 Pick Up 198 | . 21 4 15 27 15 . 21 10 5 1 22 33 17 4 3 Fast Attach 71 | . 1 . 2 2 1 . 5 13 4 . 10 4 17 11 1 Attach 100 | . 2 5 9 5 13 . 9 5 2 4 8 18 11 3 6 Detach 8 | . . . 2 . . . . . . . . . 1 3 2 Swap 118 | 2 10 . 15 25 10 . 6 10 1 1 5 21 12 . . Drop 176 | . 12 . 10 26 5 . 14 12 4 . 16 25 44 4 4 Fire 584 | . 59 3 51 122 34 . 45 75 5 30 19 76 65 . . Melee 10 | . . . 7 . . . . . . . . 2 1 . . Ram 1 | . . . . . . . . . . . . . . . 1 Kick . | . . . . . . . . . . . . . . . . Crush 1 | . 1 . . . . . . . . . . . . . . Escape Stasis 6 | . . . . . . . . . . . . . . 6 . Rewire . | . . . . . . . . . . . . . . . . Trap . | . . . . . . . . . . . . . . . . Miscellaneous . | . . . . . . . . . . . . . . . . Route ------- -11/Scrapyard -10/Materials (discovered 4 exits: *Mat x3 / [*Min]) -10/Mines -9/Materials (discovered 2 exits: *Mat / Min) -8/Materials -7/Factory -6/Factory -6/DSF -5/Factory -4/Factory -4/Waste -4/Factory (discovered 4 exits: *Res x4) -3/Research (discovered 3 exits: *Res / *Qua x2) -3/Quarantine -2/Research -1/Access History --------- Turn | Location | Event 4 | -11/Scrapyard | Discovered new exit (range 0) 4 | -11/Scrapyard | Entered Materials 221 | -10/Materials | Central database locked down 309 | -10/Materials | Build established: Mutant 670 | -10/Materials | Discovered new exit (range 16) 831 | -10/Materials | Discovered new exit (range 16) 953 | -10/Materials | Discovered new exit (range 7) 1118 | -10/Materials | Discovered new exit (range 12) 1273 | -10/Materials | Entered Mines 1274 | -10/Mines | Assembled infested the area 1279 | -10/Mines | Assisted by a Guerilla fighting off Assembled 1287 | -10/Mines | Discovered new exit (range 11) 1294 | -10/Mines | Core integrity fell below 50% 1327 | -10/Mines | Lost 7 parts (1p3n1u2w) 1335 | -10/Mines | Entered Materials 1335 | -9/Materials | Evolved 2 slots: Utility x2 1518 | -9/Materials | Lost 3 parts (1p1n1w) 1535 | -9/Materials | Core integrity fell below 50% 1930 | -9/Materials | Build established: Scavenger-Mutant 2261 | -9/Materials | Build established: Mutant 2286 | -9/Materials | Identified exit to Mines 2354 | -9/Materials | Discovered new exit (range 3) 2514 | -9/Materials | Entered another Materials area 2514 | -8/Materials | Evolved 2 slots: Propulsion x1, Utility x1 2820 | -8/Materials | Build established: Scavenger-Mutant 3446 | -8/Materials | Repaired Imp. Treads 3861 | -8/Materials | Garrison activated, responded to threat 4114 | -8/Materials | First assault squad dispatched 4191 | -8/Materials | Discovered new exit (range 14) 4215 | -8/Materials | Entered Factory 4215 | -7/Factory | Evolved 2 slots: Utility x2 4350 | -7/Factory | System corruption reached 10% 4423 | -7/Factory | Lost 7 parts (6u1w) 4640 | -7/Factory | Repaired Hpw. Shotgun 4771 | -7/Factory | Discovered new exit (range 6) 4778 | -7/Factory | Entered another Factory area 4778 | -6/Factory | Evolved 2 slots: Utility x2 4816 | -6/Factory | Identified exit to DSF 4817 | -6/Factory | Entered DSF 4854 | -6/DSF | Additional patrols routed to DSF 4980 | -6/DSF | Lost 4 parts (1p1n2u) 5064 | -6/DSF | Build established: Mutant 5100 | -6/DSF | Sterilization system engaged 5120 | -6/DSF | Ambient heat levels rising (+10) 5125 | -6/DSF | Lost 3 parts (2n1u) 5135 | -6/DSF | Ambient heat levels rising (+10) 5150 | -6/DSF | Ambient heat levels rising (+10) 5159 | -6/DSF | Discovered new exit (range 16) 5165 | -6/DSF | Ambient heat levels rising (+10) 5180 | -6/DSF | Ambient heat levels rising (+10) 5195 | -6/DSF | Ambient heat levels rising (+10) 5210 | -6/DSF | Ambient heat levels rising (+10) 5225 | -6/DSF | Ambient heat levels rising (+10) 5240 | -6/DSF | Ambient heat levels rising (+10) 5242 | -6/DSF | Entered Factory 5242 | -5/Factory | Evolved 2 slots: Utility x1, Weapon x1 5552 | -5/Factory | Build established: Scavenger-Gunner 6346 | -5/Factory | Lost 4 parts (2n1u1w) 6653 | -5/Factory | System corruption reached 10% 6776 | -5/Factory | Discovered new exit (range 14) 6797 | -5/Factory | Identified exit to Factory 6878 | -5/Factory | Entered another Factory area 6878 | -4/Factory | Evolved 2 slots: Propulsion x1, Utility x1 7113 | -4/Factory | Spotted B-86 Titan 7440 | -4/Factory | Sucked down chute 7440 | -4/Factory | Entered Waste 7444 | -4/Waste | Spotted C-40 Crusher 7445 | -4/Waste | Spotted C-40 Crusher 7455 | -4/Waste | EMP discharged 7471 | -4/Waste | Destroyed C-40 Crusher 7476 | -4/Waste | Crushed by Compactor (1 part destroyed, 1 dropped) 7481 | -4/Waste | Spotted C-40 Crusher 7493 | -4/Waste | Destroyed C-40 Crusher 7493 | -4/Waste | Spotted C-40 Crusher 7509 | -4/Waste | Destroyed C-40 Crusher 7519 | -4/Waste | Spotted C-40 Crusher 7531 | -4/Waste | Destroyed C-40 Crusher 7534 | -4/Waste | Destroyed C-40 Crusher 7539 | -4/Waste | Spotted C-40 Crusher 7555 | -4/Waste | EMP discharged 7555 | -4/Waste | System corruption reached 10% 7555 | -4/Waste | Crushed by Compactor (1 part destroyed, 1 dropped) 7558 | -4/Waste | Crushed by Compactor (1 part destroyed, 2 dropped) 7567 | -4/Waste | Destroyed C-40 Crusher 7589 | -4/Waste | Lost 5 parts (1p2n1u1w) 7618 | -4/Waste | Discovered new exit (range 19) 7655 | -4/Waste | EMP discharged 7755 | -4/Waste | EMP discharged 7755 | -4/Waste | System corruption reached 30% 7761 | -4/Waste | Identified exit to Factory 7762 | -4/Waste | Entered Factory 8603 | -4/Factory | Identified exit to Research 8675 | -4/Factory | Entered Research 8675 | -3/Research | Evolved 2 slots: Propulsion x2 8689 | -3/Research | Identified exit to Quarantine 8741 | -3/Research | Spotted B-86 Titan 8866 | -3/Research | Build established: Gunner 9167 | -3/Research | Found Imp. Powered Armor 9352 | -3/Research | System corruption reached 10% 9394 | -3/Research | Lost 3 parts (1p1u1w) 9412 | -3/Research | Build established: Scavenger-Gunner 9801 | -3/Research | Discovered new exit (range 16) 9913 | -3/Research | Lost 3 parts (1p1n1w) 10208 | -3/Research | Entered Quarantine 10226 | -3/Quarantine | Found Alien Slashing Weapon 10228 | -3/Quarantine | Identified Sigix Broadsword 10551 | -3/Quarantine | Found Alien Artifact 10551 | -3/Quarantine | Identified Core Reset Matrix 10551 | -3/Quarantine | Used Core Reset Matrix 10555 | -3/Quarantine | Detected hypermatrix surge 10555 | -3/Quarantine | Sensed 7 artifacts in vicinity 10749 | -3/Quarantine | Found Matter Drive 10829 | -3/Quarantine | Discovered new exit (range 20) 11328 | -3/Quarantine | Found Phase Armor 11374 | -3/Quarantine | Found Phase Redirector 11547 | -3/Quarantine | Met incapacitated Sigix Warrior 11547 | -3/Quarantine | Lockdown squad dispatched 11554 | -3/Quarantine | Acquired the access code to the Sigix quarantine chamber 11557 | -3/Quarantine | Unlocked Sigix quarantine chamber 11599 | -3/Quarantine | Spotted Lightning 11601 | -3/Quarantine | Spotted Lightning 11605 | -3/Quarantine | Spotted Lightning 11664 | -3/Quarantine | Destroyed Lightning 11679 | -3/Quarantine | Found Prototype Device 11680 | -3/Quarantine | Identified Exp. EM Disruption Field 11703 | -3/Quarantine | Destroyed Lightning 11712 | -3/Quarantine | System corruption reached 30% 11842 | -3/Quarantine | Core integrity fell below 50% 11891 | -3/Quarantine | Lost 7 parts (4n2u1w) 11891 | -3/Quarantine | Entered Research 11891 | -2/Research | Evolved 2 slots: Power x1, Propulsion x1 12078 | -2/Research | Build established: Scavenger-Mutant 12244 | -2/Research | Discovered new exit (range 19) 12254 | -2/Research | Entered Access 12254 | -1/Access | Evolved 2 slots: Propulsion x1, Utility x1 12460 | -1/Access | Spotted B-99 Colossus 12460 | -1/Access | Spotted B-99 Colossus 12468 | -1/Access | Core integrity fell below 50% 12470 | -1/Access | Emitted hypermatrix ping 12473 | -1/Access | Core integrity fell below 20% 12475 | -1/Access | Assembled emerged from beneath the floor 12503 | -1/Access | Lost 14 parts (2p4n7u1w) 12505 | -1/Access | Destroyed by S-43 Plague with Heavy Machine Gun Last Messages --------------- 12475_ S-43 Plague destroyed. 12475_ Slug penetrates as-09731. 12475_ Identified Imp. Heavy Treads. 12475_ S-43 Plague destroyed. 12475_ Slug penetrates as-89874. 12475_ as-89874 suffers critical hit (Destroy). 12475_ Slug penetrates Wall. 12475_ S-43 Plague destroyed. 12475_ R-10 Processor collects Unknown Reactor. 12476_ as-38114 destroyed. 12476_ Penetrated by Slug. 12478_ Slug penetrates Sealed Heavy Doors. 12478_ Slug penetrates as-09731. 12478_ U-05 Engineer builds a Wall. 12479_ Slug penetrates Wall. 12482_ U-05 Engineer builds a Wall. 12498_ W-44 Eye sends out distress signal. 12503_ System corrupted: Component data lost. 12504_ ALERT: Rogue bot located, Programmers report to Access Zone 4H. 12505_ Detected hypermatrix ping. Map ----- +----------------------------------------------------+ | ## #?????????????????# #?????????????????????? | | ## #?????????????????# #?????????????????????? | | ## ##?????????????????# #?????????????????????? | | #" #??????????????????# #?????????????????????? | | *#% #??????????????????# #?????????????????????? | | %#% ##?????????????????# s#?????????????????????? | | "" *"#?????????????????# #?????????????????????? | | " [!""?????????????????# s#?????????????????????? | | " *"??????????????????# #?????????????????????? | | " "??????????????????#s #?????????????????????? | | ## #??????????????????# #?????????????????????? | | ?" #??????????????????# #?????????????????????? | | ?# #??????????????????# h?????????????????????? | | ?# #?????????????###### #?????????????????????? | | ?# #?????????????# # #?????????????????????? | | ?# ?????????????# # #?????????????????????? | | ?# ?????????????# # #?????????????????????? | | ?# #????????????#!! # #?????????????????????? | | ?######????????????#!! # #+##+#????????????????? | | ???????????????????# + k #????????????????? | | ???????????????????# # #????????????????? | | ???????????????????# # ########+##??????? | | ???????????????????# #ss #??????? | | ???????????????????###### s #??????? | | ????????????????????????# ss #??????? | | ????????????????????????#@ u #??????? | | ????????????????????????# #??????? | | ????????????????????????# w #??????? | | ???????????????????????? k #??????? | | ????????????????????????####### #??????? | | ??????????????????????????????? #??????? | | ??????????????????????????????? #??????? | | ???????????????????????????????? #??????? | | ???????????????????????????????? #??????? | | ????????????????????????????????? #??????? | | ????????????????????????????????? w?????? | | ?????????????????????????????????? ?????? | | ??????????????????????????????????? ?????? | | ??????????????????????????????????? ??????? | | ???????????????????????????????????? [[ ???????? | | ??????????????????????????????????????[??????????? | | ?????????????????????????????????????????????????? | | ?????????????????????????????????????????????????? | | ?????????????????????????????????????????????????? | | ?????????????????????????????????????????????????? | | ?????????????????????????????????????????????????? | | ?????????????????????????????????????????????????? | | ?????????????????????????????????????????????????? | | ?????????????????????????????????????????????????? | | ?????????????????????????????????????????????????? | +----------------------------------------------------+ Best States ------------- Heat Dissipation 65 Coolant Potential 160 Energy Generation 29 Energy Capacity 350 Matter Stores 300 Matter Capacity 300 Sight Range 23 Robot Scan Range 16 Terrain Scan Density 10 Jamming Range 14 Armor Coverage 625 Resistance: KI 25 Resistance: TH 10 Resistance: EX 50 Resistance: EM 75 Propulsion Shielding 66 Weapon Shielding 66 Evasion (%) 62 Targeting Accuracy 12 Melee Accuracy 6 Target Analysis 8 Core Analysis 9 Armor Integrity Analysis 30 Recoil Reduction 6 Kinecelleration 30 Offensive Hacking 14 Item Schematics ----------------- Hvy. Neutron Cannon | -3/Quarantine | Archive Imp. Matter Neutralizer | -3/Quarantine | Archive Robot Schematics ------------------ R-10 Processor | -3/Quarantine | Archive Fabricated ------------ Nothing Alien Tech Used ----------------- Sigix Broadsword Core Reset Matrix Phase Armor Phase Redirector Matter Drive Achievements -------------- None Challenges ------------ None Game ------ Seed OpticalMolecularDriver Manual? 0 Play Time 02:05:12 Cumulative 192.6 hours Start 2022.03.24 @ 05:17:37 End 2022.03.24 @ 07:25:12 Sessions 1 Manual Loads 0 Difficulty Rogue Special Mode None Game No. 174 Rogue 165 Adventurer 2 Explorer 7 Win Type - Total 26 Types 12/1/3/8/1/0/0/1/0 Lore% 63 Gallery% 78 Achievement% 67 Wizard Run 0 Options --------- ASCII 0 Keyboard 0 Movement Mouse Keybinds 0 Fullscreen 2 Font 24/Smallcaps Map View 76x50 Tactical HUD 1 Map Filters NONE Filters NONE Steam 1 RUN: 621d1369-cfbc-4e4b-9104-352e94b22942